[Event "*** Titled Tuesday Blitz"]
[Site "Chess.com"]
[Date "2020.12.29"]
[Round "9"]
[White "Forantes"]
[Black "chessmachine14"]
[Result "0-1"]
[WhiteElo "2373"]
[BlackElo "2270"]
[TimeControl "180+1"]
[EndTime "11:43:57 PST"]
[Termination "chessmachine14 won by resignation"]

1. Nf3 {[%clk 0:03:00.9]} 1... Nf6 {[%clk 0:02:59]} 2. g3 {[%clk 0:03:00.7]}
2... g6 {[%clk 0:02:59]} 3. Bg2 {[%clk 0:03:00.6]} 3... Bg7 {[%clk 0:02:57.9]}
4. O-O {[%clk 0:03:00.5]} 4... O-O {[%clk 0:02:51.4]} 5. d4 {[%clk 0:02:58.5]}
5... d6 {[%clk 0:02:45.8]} 6. c4 {[%clk 0:02:56.9]} 6... Nc6 {[%clk 0:02:45]} 7.
Nc3 {[%clk 0:02:56]} 7... a6 {[%clk 0:02:44.9]} 8. Re1 {[%clk 0:02:49.4]} 8...
Rb8 {[%clk 0:02:44]} 9. b3 {[%clk 0:02:35.3]} 9... b5 {[%clk 0:02:40.6]} 10.
cxb5 {[%clk 0:02:22.5]} 10... axb5 {[%clk 0:02:38.9]} 11. Bb2 {[%clk 0:02:18.9]}
11... b4 {[%clk 0:02:38.2]} 12. Nb1 {[%clk 0:02:15.3]} 12... e5 {[%clk
0:02:15.8]} 13. dxe5 {[%clk 0:02:08.9]} 13... Ng4 {[%clk 0:02:14.8]} 14. Nbd2
{[%clk 0:01:57.7]} 14... Ngxe5 {[%clk 0:02:14.1]} 15. Qc1 {[%clk 0:01:41.9]}
15... Bd7 {[%clk 0:01:57.1]} 16. Nxe5 {[%clk 0:01:24.9]} 16... Nxe5 {[%clk
0:01:56.5]} 17. Nc4 {[%clk 0:01:25]} 17... Nxc4 {[%clk 0:01:39.5]} 18. Bxg7
{[%clk 0:01:24.2]} 18... Kxg7 {[%clk 0:01:39.2]} 19. Qxc4 {[%clk 0:01:24.3]}
19... c6 {[%clk 0:01:34.6]} 20. Red1 {[%clk 0:01:08.4]} 20... d5 {[%clk
0:01:33.8]} 21. Qd4+ {[%clk 0:01:03.4]} 21... Qf6 {[%clk 0:01:31.4]} 22. e4
{[%clk 0:00:56.6]} 22... Bg4 {[%clk 0:01:12]} 23. e5 {[%clk 0:00:56.2]} 23...
Qe6 {[%clk 0:00:58.8]} 24. f3 {[%clk 0:00:46.9]} 24... Bf5 {[%clk 0:00:57.7]}
25. g4 {[%clk 0:00:37.3]} 25... Bc2 {[%clk 0:00:57.2]} 26. Rd2 {[%clk
0:00:35.8]} 26... c5 {[%clk 0:00:56.9]} 27. Qxc5 {[%clk 0:00:35.6]} 27... Qxe5
{[%clk 0:00:56.2]} 28. Rc1 {[%clk 0:00:19.4]} 28... Rfc8 {[%clk 0:00:55.8]} 29.
Qxd5 {[%clk 0:00:16.2]} 29... Qe3+ {[%clk 0:00:54.7]} 30. Kh1 {[%clk 0:00:14.6]}
30... Bxb3 {[%clk 0:00:51.6]} 31. Qxb3 {[%clk 0:00:03.6]} 31... Rxc1+ {[%clk
0:00:50.7]} 32. Rd1 {[%clk 0:00:04.1]} 32... Qxb3 {[%clk 0:00:49.3]} 33. axb3
{[%clk 0:00:03.7]} 33... Rxd1+ {[%clk 0:00:49.1]} 34. Bf1 {[%clk 0:00:02.9]}
34... Rxf1+ {[%clk 0:00:49.7]} 0-1

[Event "*** Titled Tuesday Blitz"]
[Site "Chess.com"]
[Date "2020.12.29"]
[Round "9"]
[White "elohunter1999"]
[Black "tlomigtlis"]
[Result "0-1"]
[WhiteElo "2669"]
[BlackElo "2557"]
[TimeControl "180+1"]
[EndTime "11:43:58 PST"]
[Termination "tlomigtlis won on time"]

1. d4 {[%clk 0:03:00.9]} 1... d5 {[%clk 0:03:00]} 2. c4 {[%clk 0:02:57]} 2... c6
{[%clk 0:03:00.3]} 3. Nf3 {[%clk 0:02:55.5]} 3... Nf6 {[%clk 0:02:59.9]} 4. Nc3
{[%clk 0:02:56]} 4... e6 {[%clk 0:03:00]} 5. e3 {[%clk 0:02:55.9]} 5... a6
{[%clk 0:02:59.6]} 6. b3 {[%clk 0:02:39.8]} 6... Bb4 {[%clk 0:02:58.6]} 7. Bd2
{[%clk 0:02:35.9]} 7... O-O {[%clk 0:02:58.6]} 8. Bd3 {[%clk 0:02:35.1]} 8...
Nbd7 {[%clk 0:02:58.7]} 9. O-O {[%clk 0:02:34.5]} 9... Bd6 {[%clk 0:02:58.9]}
10. Qe2 {[%clk 0:02:32.5]} 10... e5 {[%clk 0:02:52.3]} 11. cxd5 {[%clk 0:02:29]}
11... cxd5 {[%clk 0:02:48]} 12. e4 {[%clk 0:02:16.9]} 12... exd4 {[%clk
0:02:37.4]} 13. Nxd5 {[%clk 0:02:16]} 13... Nxd5 {[%clk 0:02:37.2]} 14. exd5
{[%clk 0:02:16.9]} 14... Nf6 {[%clk 0:02:37.3]} 15. Bg5 {[%clk 0:01:39.4]} 15...
h6 {[%clk 0:02:20.6]} 16. Bh4 {[%clk 0:01:38.9]} 16... Bg4 {[%clk 0:02:15.4]}
17. h3 {[%clk 0:01:15]} 17... Bh5 {[%clk 0:02:10.7]} 18. g4 {[%clk 0:01:11.3]}
18... Bg6 {[%clk 0:02:07.9]} 19. Bxg6 {[%clk 0:01:09.1]} 19... fxg6 {[%clk
0:02:08.8]} 20. Qe6+ {[%clk 0:01:01.2]} 20... Kh7 {[%clk 0:02:06.8]} 21. Nxd4
{[%clk 0:00:59.9]} 21... g5 {[%clk 0:01:52.9]} 22. Bxg5 {[%clk 0:00:34.9]} 22...
hxg5 {[%clk 0:01:50.5]} 23. Qf5+ {[%clk 0:00:34.1]} 23... g6 {[%clk 0:01:49.2]}
24. Qxg5 {[%clk 0:00:33.4]} 24... Ne4 {[%clk 0:01:43.8]} 25. Qe3 {[%clk
0:00:20.9]} 25... Ng5 {[%clk 0:01:03.6]} 26. Kg2 {[%clk 0:00:17.5]} 26... Bf4
{[%clk 0:01:02]} 27. Qd3 {[%clk 0:00:08]} 27... Qxd5+ {[%clk 0:01:01.8]} 28. f3
{[%clk 0:00:08.3]} 28... Rad8 {[%clk 0:00:59.9]} 29. Rad1 {[%clk 0:00:07.4]}
29... Be5 {[%clk 0:01:00.1]} 30. Rfe1 {[%clk 0:00:05.2]} 30... Bxd4 {[%clk
0:00:55.4]} 31. Re7+ {[%clk 0:00:04.6]} 31... Kh6 {[%clk 0:00:55.6]} 32. h4
{[%clk 0:00:04.4]} 32... Qxf3+ {[%clk 0:00:52.9]} 33. Qxf3 {[%clk 0:00:01.9]}
33... Nxf3 {[%clk 0:00:53.8]} 34. g5+ {[%clk 0:00:01.1]} 34... Kh5 {[%clk
0:00:52.8]} 35. Kg3 {[%clk 0:00:01.5]} 35... Bf2+ {[%clk 0:00:50.8]} 36. Kh3
{[%clk 0:00:01.4]} 36... Rxd1 {[%clk 0:00:51.7]} 0-1

[Event "*** Titled Tuesday Blitz"]
[Site "Chess.com"]
[Date "2020.12.29"]
[Round "9"]
[White "drragnar1"]
[Black "Susal_De_Silva"]
[Result "1/2-1/2"]
[WhiteElo "2449"]
[BlackElo "2563"]
[TimeControl "180+1"]
[EndTime "11:43:58 PST"]
[Termination "Game drawn by repetition"]

1. g3 {[%clk 0:03:00.8]} 1... g6 {[%clk 0:02:58.5]} 2. Bg2 {[%clk 0:03:01]} 2...
Bg7 {[%clk 0:02:59.3]} 3. c4 {[%clk 0:03:01.1]} 3... d6 {[%clk 0:02:59.5]} 4.
Nc3 {[%clk 0:03:01.6]} 4... Nf6 {[%clk 0:02:58]} 5. Nf3 {[%clk 0:02:59.9]} 5...
O-O {[%clk 0:02:58.1]} 6. O-O {[%clk 0:02:57.8]} 6... e5 {[%clk 0:02:57.1]} 7.
d3 {[%clk 0:02:57.8]} 7... Nc6 {[%clk 0:02:55.8]} 8. Rb1 {[%clk 0:02:57]} 8...
Ne8 {[%clk 0:02:54.5]} 9. b4 {[%clk 0:02:55.7]} 9... f5 {[%clk 0:02:54.8]} 10.
b5 {[%clk 0:02:55.5]} 10... Ne7 {[%clk 0:02:54.7]} 11. Qc2 {[%clk 0:02:26]}
11... h6 {[%clk 0:02:49.9]} 12. a4 {[%clk 0:02:22.1]} 12... f4 {[%clk
0:02:47.7]} 13. Ba3 {[%clk 0:02:18.4]} 13... g5 {[%clk 0:02:44.8]} 14. c5 {[%clk
0:02:12.9]} 14... d5 {[%clk 0:02:43.2]} 15. c6 {[%clk 0:02:12.9]} 15... bxc6
{[%clk 0:02:39.1]} 16. bxc6 {[%clk 0:02:12]} 16... Nd6 {[%clk 0:02:38.6]} 17.
Nd2 {[%clk 0:02:06.7]} 17... Be6 {[%clk 0:02:36.5]} 18. Bxd6 {[%clk 0:02:03.7]}
18... Qxd6 {[%clk 0:02:37.4]} 19. Nb5 {[%clk 0:02:00.6]} 19... Qd8 {[%clk
0:02:36.9]} 20. Nb3 {[%clk 0:01:45.6]} 20... a6 {[%clk 0:02:34.4]} 21. Nc5
{[%clk 0:01:45.6]} 21... Rf6 {[%clk 0:02:31.2]} 22. Nc3 {[%clk 0:01:08.5]} 22...
Bf7 {[%clk 0:02:27.7]} 23. Nb7 {[%clk 0:00:49.1]} 23... Qe8 {[%clk 0:02:26.9]}
24. Na5 {[%clk 0:00:41.3]} 24... Rd8 {[%clk 0:02:24.7]} 25. Rfc1 {[%clk
0:00:29.6]} 25... Rxc6 {[%clk 0:02:23.4]} 26. Nxc6 {[%clk 0:00:29]} 26... Nxc6
{[%clk 0:02:18.3]} 27. Nxd5 {[%clk 0:00:19.4]} 27... Nd4 {[%clk 0:02:09.1]} 28.
Nxc7 {[%clk 0:00:19.5]} 28... Qd7 {[%clk 0:02:05.8]} 29. Qd2 {[%clk 0:00:18.8]}
29... Rc8 {[%clk 0:01:57.4]} 30. Nxa6 {[%clk 0:00:18.2]} 30... Rxc1+ {[%clk
0:01:57.4]} 31. Rxc1 {[%clk 0:00:17.3]} 31... Nb3 {[%clk 0:01:57.3]} 32. Nc5
{[%clk 0:00:13.8]} 32... Nxc5 {[%clk 0:01:48.8]} 33. Rxc5 {[%clk 0:00:14.7]}
33... Qxa4 {[%clk 0:01:49.1]} 34. h3 {[%clk 0:00:12.7]} 34... Bg6 {[%clk
0:01:43.9]} 35. Qc2 {[%clk 0:00:10.5]} 35... Qa1+ {[%clk 0:01:44.1]} 36. Kh2
{[%clk 0:00:11.2]} 36... Kh7 {[%clk 0:01:43.2]} 37. Rc7 {[%clk 0:00:11.1]} 37...
Qd4 {[%clk 0:01:40.4]} 38. Qc3 {[%clk 0:00:09.6]} 38... Qxf2 {[%clk 0:01:39.1]}
39. Qxe5 {[%clk 0:00:09.6]} 39... Qxg3+ {[%clk 0:01:38.1]} 40. Kg1 {[%clk
0:00:09.9]} 40... Qe1+ {[%clk 0:01:35.2]} 41. Kh2 {[%clk 0:00:10.4]} 41... Qg3+
{[%clk 0:01:34.1]} 42. Kh1 {[%clk 0:00:11]} 42... Qe1+ {[%clk 0:01:24.4]} 43.
Kh2 {[%clk 0:00:11.2]} 43... Qg3+ {[%clk 0:01:24.2]} 1/2-1/2

[Event "*** Titled Tuesday Blitz"]
[Site "Chess.com"]
[Date "2020.12.29"]
[Round "9"]
[White "Msb2"]
[Black "jcibarra"]
[Result "1/2-1/2"]
[WhiteElo "2803"]
[BlackElo "2892"]
[TimeControl "180+1"]
[EndTime "11:44:01 PST"]
[Termination "Game drawn by repetition"]

1. d4 {[%clk 0:03:00.9]} 1... Nf6 {[%clk 0:02:59.1]} 2. c4 {[%clk 0:03:01.4]}
2... d6 {[%clk 0:02:58.8]} 3. Nf3 {[%clk 0:03:01.2]} 3... g6 {[%clk 0:02:58.9]}
4. Nc3 {[%clk 0:03:01.7]} 4... Bf5 {[%clk 0:02:59.3]} 5. d5 {[%clk 0:03:01.8]}
5... e5 {[%clk 0:02:58.5]} 6. dxe6 {[%clk 0:03:02.1]} 6... Bxe6 {[%clk
0:02:58.5]} 7. Nd4 {[%clk 0:03:02.8]} 7... Bd7 {[%clk 0:02:58.9]} 8. e4 {[%clk
0:03:02.9]} 8... Bg7 {[%clk 0:02:59.5]} 9. Be2 {[%clk 0:03:03.3]} 9... O-O
{[%clk 0:03:00.2]} 10. Be3 {[%clk 0:03:03.9]} 10... Re8 {[%clk 0:03:00.5]} 11.
f3 {[%clk 0:03:04.5]} 11... Nc6 {[%clk 0:03:01]} 12. Qd2 {[%clk 0:03:03.2]}
12... Nh5 {[%clk 0:02:59.6]} 13. O-O {[%clk 0:02:35.1]} 13... f5 {[%clk
0:02:51.7]} 14. f4 {[%clk 0:02:08.6]} 14... Nf6 {[%clk 0:01:51.6]} 15. Nxc6
{[%clk 0:02:04.7]} 15... Bxc6 {[%clk 0:01:49.8]} 16. exf5 {[%clk 0:02:04.1]}
16... gxf5 {[%clk 0:01:49.5]} 17. Bd4 {[%clk 0:01:57.9]} 17... Ne4 {[%clk
0:01:36.9]} 18. Nxe4 {[%clk 0:01:57.1]} 18... Bxd4+ {[%clk 0:01:33.2]} 19. Qxd4
{[%clk 0:01:56.7]} 19... Rxe4 {[%clk 0:01:33.8]} 20. Qd2 {[%clk 0:01:52.5]}
20... Qf6 {[%clk 0:01:32.5]} 21. Rad1 {[%clk 0:01:39.1]} 21... Rae8 {[%clk
0:01:25.9]} 22. Bf3 {[%clk 0:01:39]} 22... Rxc4 {[%clk 0:01:13.1]} 23. Bd5+
{[%clk 0:01:39]} 23... Bxd5 {[%clk 0:01:11.8]} 24. Qxd5+ {[%clk 0:01:39.9]}
24... Qf7 {[%clk 0:00:47.4]} 25. Qxb7 {[%clk 0:01:35.3]} 25... Re2 {[%clk
0:00:43.7]} 26. Rde1 {[%clk 0:01:24]} 26... Rcc2 {[%clk 0:00:30.5]} 27. Rxe2
{[%clk 0:01:11.2]} 27... Rxe2 {[%clk 0:00:31.4]} 28. Qxa7 {[%clk 0:00:59.8]}
28... Qd5 {[%clk 0:00:18.5]} 29. Rf2 {[%clk 0:00:34]} 29... Qd1+ {[%clk
0:00:17.3]} 30. Rf1 {[%clk 0:00:34.5]} 30... Qd5 {[%clk 0:00:16.3]} 31. Rf2
{[%clk 0:00:30.2]} 31... Qd1+ {[%clk 0:00:16.1]} 32. Rf1 {[%clk 0:00:30.7]}
32... Qd5 {[%clk 0:00:11.2]} 1/2-1/2

[Event "*** Titled Tuesday Blitz"]
[Site "Chess.com"]
[Date "2020.12.29"]
[Round "9"]
[White "K_A_S_T_O_R"]
[Black "bazar-wokzal"]
[Result "1-0"]
[WhiteElo "2803"]
[BlackElo "2564"]
[TimeControl "180+1"]
[EndTime "11:44:01 PST"]
[Termination "K_A_S_T_O_R won by resignation"]

1. e4 {[%clk 0:03:00.9]} 1... Nc6 {[%clk 0:02:58.5]} 2. Nf3 {[%clk 0:03:00.1]}
2... d5 {[%clk 0:02:58.3]} 3. exd5 {[%clk 0:02:59.6]} 3... Qxd5 {[%clk
0:02:59.2]} 4. Nc3 {[%clk 0:02:59.7]} 4... Qa5 {[%clk 0:02:59.9]} 5. Bb5 {[%clk
0:02:59.1]} 5... Bd7 {[%clk 0:03:00.2]} 6. O-O {[%clk 0:02:57.7]} 6... a6 {[%clk
0:03:00.6]} 7. Ba4 {[%clk 0:02:56.7]} 7... Nf6 {[%clk 0:02:59.8]} 8. Re1 {[%clk
0:02:56.4]} 8... Qh5 {[%clk 0:02:51.3]} 9. Ne2 {[%clk 0:02:48]} 9... b5 {[%clk
0:02:46.1]} 10. Ng3 {[%clk 0:02:45.1]} 10... Qg6 {[%clk 0:02:37.3]} 11. Bb3
{[%clk 0:02:43.9]} 11... h5 {[%clk 0:02:34]} 12. c3 {[%clk 0:02:27.6]} 12... h4
{[%clk 0:02:12.5]} 13. Bc2 {[%clk 0:02:26]} 13... Qg4 {[%clk 0:02:00.9]} 14. h3
{[%clk 0:02:22.9]} 14... Qc4 {[%clk 0:02:00.1]} 15. Ne4 {[%clk 0:02:08.6]} 15...
e6 {[%clk 0:01:33.3]} 16. d4 {[%clk 0:02:04.3]} 16... Qd5 {[%clk 0:01:27.4]} 17.
Neg5 {[%clk 0:01:51]} 17... Bd6 {[%clk 0:01:17.5]} 18. Qe2 {[%clk 0:01:43.6]}
18... Rd8 {[%clk 0:01:02]} 19. Ne5 {[%clk 0:01:39.2]} 19... Bxe5 {[%clk
0:00:47.2]} 20. dxe5 {[%clk 0:01:37.7]} 20... Ng8 {[%clk 0:00:40.3]} 21. Be4
{[%clk 0:01:17.6]} 21... Qc5 {[%clk 0:00:39.8]} 22. Bf4 {[%clk 0:01:10.3]} 22...
Nxe5 {[%clk 0:00:32.4]} 23. Bxe5 {[%clk 0:01:05.7]} 23... Qxe5 {[%clk
0:00:31.9]} 24. Nxf7 {[%clk 0:01:05.6]} 24... Qh5 {[%clk 0:00:25.7]} 25. Nxh8
{[%clk 0:01:03.2]} 25... Qxh8 {[%clk 0:00:25.1]} 26. Bg6+ {[%clk 0:01:01.9]}
26... Kf8 {[%clk 0:00:25.4]} 27. Qe3 {[%clk 0:01:00.4]} 27... Nf6 {[%clk
0:00:25.6]} 28. Qc5+ {[%clk 0:00:59.5]} 28... Kg8 {[%clk 0:00:25.5]} 29. Qe7
{[%clk 0:00:59.1]} 29... Rf8 {[%clk 0:00:24.9]} 30. Rad1 {[%clk 0:00:39.2]}
30... Qh6 {[%clk 0:00:20.2]} 31. Bc2 {[%clk 0:00:37.1]} 31... Bc8 {[%clk
0:00:17.8]} 32. Rd8 {[%clk 0:00:33]} 32... Nh7 {[%clk 0:00:14]} 33. Bxh7+ {[%clk
0:00:31.3]} 1-0

[Event "*** Titled Tuesday Blitz"]
[Site "Chess.com"]
[Date "2020.12.29"]
[Round "9"]
[White "Pedrada88"]
[Black "KhamzinOlzhas"]
[Result "1-0"]
[WhiteElo "2387"]
[BlackElo "2453"]
[TimeControl "180+1"]
[EndTime "11:44:09 PST"]
[Termination "Pedrada88 won by checkmate"]

1. Nf3 {[%clk 0:03:00.9]} 1... c6 {[%clk 0:02:52.3]} 2. g3 {[%clk 0:02:52.4]}
2... d5 {[%clk 0:02:52.6]} 3. Bg2 {[%clk 0:02:53.3]} 3... Nf6 {[%clk 0:02:51.8]}
4. O-O {[%clk 0:02:53.3]} 4... Nbd7 {[%clk 0:02:48.9]} 5. d4 {[%clk 0:02:51.5]}
5... e6 {[%clk 0:02:47.3]} 6. c4 {[%clk 0:02:51.8]} 6... Ne4 {[%clk 0:02:43.3]}
7. Ne1 {[%clk 0:02:45.6]} 7... Nd6 {[%clk 0:02:40.2]} 8. c5 {[%clk 0:02:42.9]}
8... Nf5 {[%clk 0:02:29.4]} 9. e4 {[%clk 0:02:37.4]} 9... dxe4 {[%clk 0:02:28]}
10. Bxe4 {[%clk 0:02:38.3]} 10... Be7 {[%clk 0:02:22.7]} 11. Bxf5 {[%clk
0:02:30.8]} 11... exf5 {[%clk 0:02:23.6]} 12. Qf3 {[%clk 0:02:27.5]} 12... O-O
{[%clk 0:02:12.5]} 13. Nc3 {[%clk 0:02:24.8]} 13... Nf6 {[%clk 0:02:11.1]} 14.
Be3 {[%clk 0:02:16.7]} 14... Ng4 {[%clk 0:02:07.8]} 15. Nd3 {[%clk 0:02:14.9]}
15... Bf6 {[%clk 0:02:03.2]} 16. Rad1 {[%clk 0:02:10.1]} 16... Be6 {[%clk
0:01:55.7]} 17. Nf4 {[%clk 0:02:08.5]} 17... Bc4 {[%clk 0:01:51.9]} 18. Rfe1
{[%clk 0:02:08.9]} 18... Bg5 {[%clk 0:01:44.9]} 19. b3 {[%clk 0:02:04.9]} 19...
Ba6 {[%clk 0:01:38.4]} 20. d5 {[%clk 0:02:03.7]} 20... Nxe3 {[%clk 0:01:31.8]}
21. Rxe3 {[%clk 0:02:00.6]} 21... cxd5 {[%clk 0:01:29]} 22. Ncxd5 {[%clk
0:01:51.7]} 22... Qa5 {[%clk 0:01:23.9]} 23. h4 {[%clk 0:01:45.5]} 23... Bxf4
{[%clk 0:01:17.1]} 24. Qxf4 {[%clk 0:01:46.4]} 24... Qxc5 {[%clk 0:01:12.3]} 25.
Qxf5 {[%clk 0:01:41.6]} 25... Qa3 {[%clk 0:00:56]} 26. Re5 {[%clk 0:01:35.7]}
26... Rae8 {[%clk 0:00:41.4]} 27. Rde1 {[%clk 0:01:28.4]} 27... Rxe5 {[%clk
0:00:41.1]} 28. Rxe5 {[%clk 0:01:29.3]} 28... Qc1+ {[%clk 0:00:40.8]} 29. Kh2
{[%clk 0:01:29.3]} 29... Qd2 {[%clk 0:00:36.2]} 30. Ne7+ {[%clk 0:01:11.7]}
30... Kh8 {[%clk 0:00:35.7]} 31. Rd5 {[%clk 0:01:12.6]} 31... Qe2 {[%clk
0:00:07.5]} 32. Qxf7 {[%clk 0:01:08.9]} 32... Rb8 {[%clk 0:00:07]} 33. Rf5
{[%clk 0:00:48.9]} 33... h6 {[%clk 0:00:05.5]} 34. Ng6+ {[%clk 0:00:44.5]} 34...
Kh7 {[%clk 0:00:05.5]} 35. Nf8+ {[%clk 0:00:44.5]} 35... Kh8 {[%clk 0:00:05.4]}
36. Qg6 {[%clk 0:00:37.7]} 36... Bd3 {[%clk 0:00:04.2]} 37. Qh7# {[%clk
0:00:37]} 1-0

[Event "*** Titled Tuesday Blitz"]
[Site "Chess.com"]
[Date "2020.12.29"]
[Round "9"]
[White "ZiggyStardust64"]
[Black "Khusenkhojaev"]
[Result "1-0"]
[WhiteElo "2674"]
[BlackElo "2437"]
[TimeControl "180+1"]
[EndTime "11:44:11 PST"]
[Termination "ZiggyStardust64 won by resignation"]

1. e4 {[%clk 0:03:00.9]} 1... e5 {[%clk 0:02:59.4]} 2. Nf3 {[%clk 0:03:01.2]}
2... Nc6 {[%clk 0:02:59.2]} 3. Bb5 {[%clk 0:03:01.9]} 3... a6 {[%clk 0:02:59.1]}
4. Ba4 {[%clk 0:03:02.4]} 4... Nf6 {[%clk 0:02:58.2]} 5. O-O {[%clk 0:03:03.1]}
5... Be7 {[%clk 0:02:58.1]} 6. Re1 {[%clk 0:03:03.6]} 6... b5 {[%clk 0:02:58.5]}
7. Bb3 {[%clk 0:03:03.9]} 7... d6 {[%clk 0:02:59.1]} 8. c3 {[%clk 0:03:04.4]}
8... O-O {[%clk 0:02:55.2]} 9. h3 {[%clk 0:03:04.6]} 9... Nb8 {[%clk 0:02:54.3]}
10. d4 {[%clk 0:03:03.6]} 10... Nbd7 {[%clk 0:02:54.5]} 11. Nbd2 {[%clk
0:03:04]} 11... Bb7 {[%clk 0:02:54.4]} 12. Bc2 {[%clk 0:03:04.7]} 12... Re8
{[%clk 0:02:54.1]} 13. Nf1 {[%clk 0:03:04.5]} 13... Bf8 {[%clk 0:02:54.2]} 14.
Ng3 {[%clk 0:03:04.9]} 14... g6 {[%clk 0:02:54.3]} 15. a4 {[%clk 0:03:05.6]}
15... c5 {[%clk 0:02:53.9]} 16. d5 {[%clk 0:03:04.6]} 16... c4 {[%clk 0:02:54]}
17. Bg5 {[%clk 0:02:59.8]} 17... h6 {[%clk 0:02:53]} 18. Be3 {[%clk 0:03:00.4]}
18... Nc5 {[%clk 0:02:52.5]} 19. Nh2 {[%clk 0:02:52.5]} 19... h5 {[%clk
0:02:51.4]} 20. Nhf1 {[%clk 0:02:31.2]} 20... Nfd7 {[%clk 0:02:49.9]} 21. Nd2
{[%clk 0:02:24]} 21... Bg7 {[%clk 0:02:40.8]} 22. Rf1 {[%clk 0:02:21.2]} 22...
Nb6 {[%clk 0:02:31.4]} 23. a5 {[%clk 0:02:15.3]} 23... Nbd7 {[%clk 0:02:30.4]}
24. Kh1 {[%clk 0:02:15.1]} 24... Bc8 {[%clk 0:02:27.8]} 25. Ne2 {[%clk
0:02:04.1]} 25... Nb7 {[%clk 0:02:17.9]} 26. f4 {[%clk 0:02:03]} 26... Nxa5
{[%clk 0:02:16.7]} 27. f5 {[%clk 0:02:01.4]} 27... Nb7 {[%clk 0:02:12.2]} 28. b4
{[%clk 0:01:36.6]} 28... a5 {[%clk 0:02:04.8]} 29. Ng1 {[%clk 0:01:12.2]} 29...
a4 {[%clk 0:02:03.4]} 30. Ngf3 {[%clk 0:01:08.4]} 30... Qe7 {[%clk 0:01:51.8]}
31. Ng5 {[%clk 0:01:01.7]} 31... Nd8 {[%clk 0:01:48.5]} 32. Qf3 {[%clk
0:00:52.4]} 32... Rf8 {[%clk 0:01:40.2]} 33. Qg3 {[%clk 0:00:48.6]} 33... Nf6
{[%clk 0:01:33.4]} 34. Ndf3 {[%clk 0:00:48.7]} 34... Kh8 {[%clk 0:01:16.3]} 35.
Nh4 {[%clk 0:00:41]} 35... gxf5 {[%clk 0:00:50.5]} 36. Nxf5 {[%clk 0:00:41.9]}
36... Bxf5 {[%clk 0:00:49]} 37. Rxf5 {[%clk 0:00:42.8]} 37... a3 {[%clk
0:00:42.5]} 38. Qh4 {[%clk 0:00:42.6]} 38... Kg8 {[%clk 0:00:38]} 39. Nf3 {[%clk
0:00:42.6]} 39... Re8 {[%clk 0:00:31.7]} 40. Bg5 {[%clk 0:00:42.3]} 1-0

[Event "*** Titled Tuesday Blitz"]
[Site "Chess.com"]
[Date "2020.12.29"]
[Round "9"]
[White "queen_iryna"]
[Black "norwaytoadog"]
[Result "0-1"]
[WhiteElo "2299"]
[BlackElo "2192"]
[TimeControl "180+1"]
[EndTime "11:44:12 PST"]
[Termination "norwaytoadog won by checkmate"]

1. e4 {[%clk 0:03:00.9]} 1... c5 {[%clk 0:02:59.6]} 2. Nf3 {[%clk 0:02:59.6]}
2... d6 {[%clk 0:02:59.6]} 3. Bb5+ {[%clk 0:02:58.5]} 3... Bd7 {[%clk
0:02:58.9]} 4. Bxd7+ {[%clk 0:02:57.1]} 4... Nxd7 {[%clk 0:02:59.2]} 5. c4
{[%clk 0:02:55.5]} 5... Ngf6 {[%clk 0:02:52.7]} 6. Nc3 {[%clk 0:02:55]} 6... e6
{[%clk 0:02:52.7]} 7. O-O {[%clk 0:02:53.8]} 7... Be7 {[%clk 0:02:52.6]} 8. d4
{[%clk 0:02:54.7]} 8... cxd4 {[%clk 0:02:49.7]} 9. Nxd4 {[%clk 0:02:55.6]} 9...
a6 {[%clk 0:02:49.3]} 10. Be3 {[%clk 0:02:55]} 10... Rc8 {[%clk 0:02:48.2]} 11.
Qe2 {[%clk 0:02:39.4]} 11... Ne5 {[%clk 0:02:29.6]} 12. b3 {[%clk 0:02:25.9]}
12... b5 {[%clk 0:02:16.3]} 13. Rac1 {[%clk 0:02:21.6]} 13... bxc4 {[%clk
0:02:14]} 14. bxc4 {[%clk 0:02:11.4]} 14... O-O {[%clk 0:02:07.1]} 15. Rfd1
{[%clk 0:02:06.1]} 15... Qa5 {[%clk 0:01:53.5]} 16. Nb3 {[%clk 0:01:55.3]} 16...
Qb4 {[%clk 0:01:49.4]} 17. c5 {[%clk 0:01:47.7]} 17... dxc5 {[%clk 0:01:35.8]}
18. Qxa6 {[%clk 0:01:47.2]} 18... Nc4 {[%clk 0:01:25.8]} 19. Qb5 {[%clk
0:01:07.9]} 19... Nxe3 {[%clk 0:01:11.1]} 20. fxe3 {[%clk 0:01:08.8]} 20... c4
{[%clk 0:00:55.4]} 21. Nd4 {[%clk 0:00:44.5]} 21... Qa3 {[%clk 0:00:45.1]} 22.
h3 {[%clk 0:00:29.9]} 22... Rb8 {[%clk 0:00:44.7]} 23. Qxc4 {[%clk 0:00:25.4]}
23... Rfc8 {[%clk 0:00:44.7]} 24. Qd3 {[%clk 0:00:25.5]} 24... Rb2 {[%clk
0:00:38.2]} 25. Nce2 {[%clk 0:00:24.3]} 25... Qa8 {[%clk 0:00:26.7]} 26. Rxc8+
{[%clk 0:00:22.9]} 26... Qxc8 {[%clk 0:00:26.9]} 27. a4 {[%clk 0:00:22.2]} 27...
Qb7 {[%clk 0:00:24]} 28. Nb5 {[%clk 0:00:21.7]} 28... h5 {[%clk 0:00:21.6]} 29.
Qd4 {[%clk 0:00:16.5]} 29... Rxe2 {[%clk 0:00:19.8]} 30. Kf1 {[%clk 0:00:15.9]}
30... Rc2 {[%clk 0:00:18.4]} 31. e5 {[%clk 0:00:16]} 31... Qxg2+ {[%clk
0:00:17.7]} 32. Ke1 {[%clk 0:00:15.5]} 32... Qe2# {[%clk 0:00:16.8]} 0-1